fUSD/lending_fUSD_20251013
["ID","MTS","AMOUNT","RATE_DAILY","PERIOD"]
[391104491,1760350241377,-500.0,0.00015,2]
[391104492,1760350241386,-500.0,0.00015,2]
[391104493,1760350241395,-500.0,0.00015,2]
[391104494,1760350241403,-500.0,0.00015,2]
[391104495,1760350241413,-500.0,0.00015,2]
[391104496,1760350241422,-500.0,0.00015,2]
[391104497,1760350241431,-500.0,0.00015,2]
[391104498,1760350241440,-500.0,0.00015,2]
[391104499,1760350241450,-500.0,0.00015,2]
[391104500,1760350241460,-500.0,0.00015,2]
[391104501,1760350241469,-500.0,0.00015,2]
[391104502,1760350241478,-500.0,0.00015,2]
[391104503,1760350241487,-500.0,0.00015,2]
[391104504,1760350241497,-500.0,0.00015,2]
[391104505,1760350241507,-500.0,0.00015,2]
[391104506,1760350241516,-500.0,0.00015,2]
[391104507,1760350241527,-500.0,0.00015,2]
[391104508,1760350241536,-500.0,0.00015,2]
[391104509,1760350241547,-500.0,0.00015,2]
[391104510,1760350241556,-500.0,0.00015,2]
[391104511,1760350241567,-500.0,0.00015,2]
[391104512,1760350241577,-500.0,0.00015,2]
[391104513,1760350241587,-500.0,0.00015,2]
[391104514,1760350241601,-500.0,0.00015,2]
[391104515,1760350241611,-500.0,0.00015,2]
[391104516,1760350241620,-500.0,0.00015,2]
[391104517,1760350241630,-500.0,0.00015,2]
[391104518,1760350241641,-500.0,0.00015,2]
[391104519,1760350241650,-500.0,0.00015,2]
[391104520,1760350241658,-500.0,0.00015,2]
[391104521,1760350241668,-500.0,0.00015,2]
[391104522,1760350241679,-500.0,0.00015,2]
[391104523,1760350241688,-500.0,0.00015,2]
[391104524,1760350241698,-500.0,0.00015,2]
[391104525,1760350241708,-500.0,0.00015,2]
[391104526,1760350241717,-500.0,0.00015,2]
[391104527,1760350241726,-500.0,0.00015,2]
[391104528,1760350241734,-500.0,0.00015,2]
[391104529,1760350241744,-500.0,0.00015,2]
[391104530,1760350241753,-500.0,0.00015,2]
[391104531,1760350241762,-500.0,0.00015,2]
[391104532,1760350241771,-500.0,0.00015,2]
[391104533,1760350241780,-500.0,0.00015,2]
[391104534,1760350241789,-556.0,0.00015,2]
[391104535,1760350242105,-200.0,0.00015,2]
[391104536,1760350242115,-500.0,0.00015,2]
[391104537,1760350242124,-200.0,0.00015,2]
[391104538,1760350242133,-500.0,0.00015,2]
[391104539,1760350242142,-500.0,0.00015,2]
[391104540,1760350242152,-500.0,0.00015,2]
[391104541,1760350242161,-699.0,0.00015,2]
[391104542,1760350242170,-500.0,0.00015,2]
[391104543,1760350242179,-500.0,0.00015,2]
[391104544,1760350242188,-500.0,0.00015,2]
[391104545,1760350242198,-500.0,0.00015,2]
[391104546,1760350242208,-548.0,0.00015,2]
[391104547,1760350242218,-151.0,0.00015,2]
[391104548,1760350242228,-151.0,0.00015,2]
[391104549,1760350242237,-442.0,0.00015,2]
[391104550,1760350242246,-300.0,0.00015,2]
[391104551,1760350242255,-195.0,0.00015,2]
[391104552,1760350242264,-160.0,0.00015,2]
[391104553,1760350242274,-1680.0,0.00015001,2]
[391104554,1760350242283,-166.66,0.00015004,2]
[391104555,1760350242292,-168.0,0.0001501,2]
[391104556,1760350242302,-692.05505112,0.00015012,2]
[391104557,1760350242311,-500.0,0.00015054,2]
[391104558,1760350242320,-200.0,0.00015054,2]
[391104559,1760350242329,-500.0,0.00015054,2]
[391104560,1760350242338,-150.0,0.00015054,2]
[391104561,1760350242347,-500.0,0.00015054,2]
[391104562,1760350242356,-150.0,0.00015054,2]
[391104563,1760350242365,-150.0,0.00015054,2]
[391104564,1760350242374,-440.0,0.00015054,2]
[391104565,1760350242383,-200.0,0.00015054,2]
[391104566,1760350242394,-150.0,0.00015054,2]
[391104567,1760350242403,-150.0,0.00015054,2]
[391104568,1760350242413,-500.0,0.00015054,2]
[391104569,1760350242422,-1209.0,0.00015054,2]
[391104570,1760350242431,-903.0,0.00015054,2]
[391104571,1760350242443,-150.0,0.00015054,2]
[391104572,1760350242455,-500.0,0.00015054,2]
[391104573,1760350242467,-150.0,0.00015054,2]
[391104574,1760350242477,-172.76802236,0.00015054,2]
[391104575,1760350242486,-237.96483594,0.00015054,2]
[391104576,1760350242495,-150.0,0.00015054,2]
[391104577,1760350242505,-150.0,0.00015054,2]
[391104578,1760350242514,-300.0,0.00015068,2]
[391104579,1760350242523,-500.0,0.00015109,2]
[391104580,1760350242533,-500.0,0.00015109,2]
[391104581,1760350242541,-215.0,0.00015109,2]
[391104582,1760350242551,-500.0,0.00015109,2]
[391104583,1760350242561,-150.0,0.00015109,2]
[391104584,1760350242570,-440.0,0.00015109,2]
[391104585,1760350242579,-250.0,0.00015109,2]
[391104586,1760350242588,-150.5645471,0.00015109,2]
[391104587,1760350242600,-500.0,0.00015109,2]
[391104588,1760350242609,-1209.0,0.00015109,2]
[391104589,1760350242618,-903.0,0.00015109,2]
[391104590,1760350242628,-150.0,0.00015109,2]
[391104591,1760350242637,-500.0,0.00015109,2]
[391104592,1760350242647,-150.0,0.00015109,2]
[391104593,1760350242656,-150.0,0.00015109,2]
[391104594,1760350242665,-150.0,0.00015109,2]
[391104595,1760350242676,-39832.68762579,0.0001515,2]
[391104596,1760350242689,-4220.76174618,0.0001515,2]
[391104597,1760350242700,-1572.09883155,0.0001515,2]
[391104598,1760350242710,-107.59116845,0.0001515,2]
[391104599,1760350242722,-92.40883155,0.0001515,2]
[391104600,1760350242731,-200.0,0.0001515,2]
[391104601,1760350242740,-293.81961337,0.00015163,2]
[391104602,1760350242751,-206.18038663,0.00015163,2]
[391104603,1760350242760,-179.77095272,0.00015163,2]
[391104604,1760350242769,-298.00597567,0.00015163,2]
[391104614,1760350244300,-151.0,0.00015163,2]
[391104615,1760350244309,-151.0,0.00015163,2]
[391104616,1760350244319,-201.99402433,0.00015163,2]
[391104617,1760350244328,-250.0,0.00015163,2]
[391104618,1760350244338,-440.0,0.00015163,2]
[391104619,1760350244347,-500.0,0.00015163,2]
[391104620,1760350244357,-1209.0,0.00015163,2]
[391104621,1760350244367,-903.0,0.00015163,2]
[391104622,1760350244377,-200.0,0.00015163,2]
[391104623,1760350244387,-500.0,0.00015163,2]
[391104624,1760350244398,-200.0,0.00015163,2]
[391104625,1760350244406,-250.0,0.00015163,2]
[391104626,1760350244415,-151.45677538,0.00015163,2]
[391104627,1760350244425,-500.0,0.00015218,2]
[391104628,1760350244434,-500.0,0.00015218,2]
[391104629,1760350244443,-440.0,0.00015218,2]
[391104630,1760350244452,-500.0,0.00015218,2]
[391104631,1760350244462,-1209.0,0.00015218,2]
[391104632,1760350244470,-903.0,0.00015218,2]
[391104633,1760350244479,-500.0,0.00015218,2]
[391104634,1760350244488,-1175.32,0.00015265,2]
[391104635,1760350244498,-500.0,0.00015273,2]
[391104636,1760350244506,-500.0,0.00015273,2]
[391104637,1760350244515,-440.0,0.00015273,2]
[391104638,1760350244524,-500.0,0.00015273,2]
[391104639,1760350244534,-1209.0,0.00015273,2]
[391104640,1760350244543,-903.0,0.00015273,2]
[391104641,1760350244553,-372.00655161,0.00015273,2]
[391104642,1760350244562,-260.0,0.00015285,2]
[391104643,1760350244572,-168.0,0.00015291,2]
[391104644,1760350244580,-200.0,0.00015301,2]
[391104645,1760350244590,-200.0,0.00015301,2]
[391104646,1760350244603,-500.0,0.00015328,2]
[391104647,1760350244612,-468.7683787,0.00015328,2]
[391104648,1760350244621,-440.0,0.00015328,2]
[391104649,1760350244631,-500.0,0.00015328,2]
[391104650,1760350244640,-1209.0,0.00015328,2]
[391104651,1760350244650,-903.0,0.00015328,2]
[391104652,1760350244659,-500.0,0.00015383,2]
[391104653,1760350244668,-440.0,0.00015383,2]
[391104654,1760350244679,-568.68830365,0.00015383,2]
[391104655,1760350244689,-1209.0,0.00015383,2]
[391104656,1760350244698,-903.0,0.00015383,2]
[391104657,1760350244708,-255.0,0.00015429,2]
[391104658,1760350244717,-1533.15,0.00015436,2]
[391104659,1760350244726,-500.0,0.00015437,2]
[391104660,1760350244736,-440.0,0.00015437,2]
[391104661,1760350244745,-1209.0,0.00015437,2]
[391104662,1760350244755,-630.71645021,0.00015437,2]
[391104663,1760350244766,-272.28354979,0.00015437,2]
[391104664,1760350244775,-1092.16463302,0.0001545,2]
[391104665,1760350244785,-200.0,0.00015455,2]
[391104666,1760350244794,-150.0,0.00015479,2]
[391104667,1760350244804,-351.74,0.00015479,2]
[391104668,1760350244813,-323.97,0.00015479,2]
[391104669,1760350244822,-190.34,0.00015479,2]
[391104670,1760350244832,-166.66,0.00015483,2]
[391104671,1760350244841,-500.0,0.00015492,2]
[391104672,1760350244850,-440.0,0.00015492,2]
[391104673,1760350244860,-1209.0,0.00015492,2]
[391104674,1760350244870,-903.0,0.00015492,2]
[391104675,1760350244880,-505.65019941,0.00015521,2]
[391104676,1760350244889,-1000.0,0.00015521,2]
[391104677,1760350244899,-858.26510893,0.00015521,2]
[391104678,1760350244908,-500.0,0.00015521,2]
[391104679,1760350244917,-570.95181044,0.00015521,2]
[391104680,1760350244926,-1000.0,0.00015521,2]
[391104681,1760350244936,-500.0,0.00015521,2]
[391104682,1760350244946,-1001.89486327,0.00015521,2]
[391104683,1760350244955,-1000.0,0.00015521,2]
[391104684,1760350244966,-1000.0,0.00015521,2]
[391104685,1760350244975,-1000.0,0.00015521,2]
[391104686,1760350244985,-1000.0,0.00015521,2]
[391104687,1760350244994,-532.17576437,0.00015539,2]
[391104688,1760350245031,-643.14423563,0.00015539,2]
[391104689,1760350245040,-612.19455372,0.00015547,2]
[391104690,1760350245049,-440.0,0.00015547,2]
[391104691,1760350245059,-1209.0,0.00015547,2]
[391104692,1760350245070,-903.0,0.00015547,2]
[391104693,1760350245080,-440.0,0.00015602,2]
[391104694,1760350245093,-1209.0,0.00015602,2]
[391104695,1760350245102,-903.0,0.00015602,2]
[391104696,1760350245112,-200.0,0.00015609,2]
[391104697,1760350245121,-440.0,0.00015657,2]
[391104698,1760350245131,-1209.0,0.00015657,2]
[391104699,1760350245140,-903.0,0.00015657,2]
[391104700,1760350245151,-440.0,0.00015711,2]
[391104701,1760350245161,-1209.0,0.00015711,2]
[391104702,1760350245171,-767.96641065,0.00015711,2]
[391104703,1760350245183,-135.03358935,0.00015711,2]
[391104704,1760350245192,-235.78740823,0.00015749,2]
[391104705,1760350245202,-235.71886104,0.00015766,2]
[391104706,1760350245214,-204.28113896,0.00015766,2]
[391104707,1760350245223,-1209.0,0.00015766,2]
[391104708,1760350245232,-903.0,0.00015766,2]
[391104709,1760350245241,-1425.0,0.00015807,2]
[391104710,1760350245250,-1000.0,0.00015808,2]
[391104711,1760350245259,-1175.32,0.00015813,2]
[391104712,1760350245268,-1425.0,0.0001582,2]
[391104713,1760350245278,-440.0,0.00015821,2]
[391104714,1760350245288,-1209.0,0.00015821,2]
[391104715,1760350245297,-903.0,0.00015821,2]
[391104716,1760350245306,-818.21149841,0.00015823,2]
[391104717,1760350245315,-1000.0,0.00015829,2]
[391104718,1760350245324,-1000.0,0.00015831,2]
[391104719,1760350245334,-1425.0,0.0001585,2]
[391104720,1760350245343,-2075.85392,0.0001585,2]
[391104721,1760350245352,-1425.0,0.0001586,2]
[391104722,1760350245361,-1000.0,0.00015865,2]
[391104723,1760350245370,-1000.0,0.00015872,2]
[391104724,1760350245379,-161.89,0.00015873,2]
[391104725,1760350245388,-1000.0,0.00015874,2]
[391104726,1760350245397,-440.0,0.00015876,2]
[391104727,1760350245406,-1209.0,0.00015876,2]
[391104728,1760350245415,-903.0,0.00015876,2]
[391104729,1760350245424,-1000.0,0.00015895,2]
[391104730,1760350245433,-212.0,0.00015904,2]
[391104731,1760350245442,-1000.0,0.00015905,2]
[391104732,1760350245451,-1425.0,0.0001592,2]
[391104733,1760350245461,-1425.0,0.00015929,2]
[391104734,1760350245471,-440.0,0.00015931,2]
[391104735,1760350245481,-1209.0,0.00015931,2]
[391104736,1760350245490,-903.0,0.00015931,2]
[391104737,1760350245499,-1000.0,0.00015931,2]
[391104738,1760350245508,-564.08831999,0.00015933,2]
[391104739,1760350245519,-529.3941732,0.00015933,2]
[391104743,1760350246302,-331.51750681,0.00015933,2]
[391104744,1760350246311,-95.83413852,0.00015933,2]
[391104745,1760350246322,-55.16586148,0.00015933,2]
[391104746,1760350246332,-151.0,0.00015933,2]
[391104747,1760350246342,-1000.0,0.00015935,2]
[391104748,1760350246351,-1000.0,0.00015935,2]
[391104749,1760350246360,-1000.0,0.00015936,2]
[391104750,1760350246369,-150.0,0.00015939,2]
[391104751,1760350246658,-108.23197852,0.00015949,2]
[391104752,1760350246678,-891.76802148,0.00015949,2]
[391104753,1760350246688,-1000.0,0.00015958,2]
[391104754,1760350246699,-1000.0,0.00015962,2]
[391104755,1760350246709,-166.66,0.00015963,2]
[391104756,1760350246719,-1000.0,0.00015964,2]
[391104757,1760350246728,-1000.0,0.00015967,2]
[391104758,1760350246738,-150.0,0.00015973,2]
[391104759,1760350246748,-1000.0,0.00015979,2]
[391104760,1760350246757,-212.0,0.00015982,2]
[391104761,1760350246767,-112.84197852,0.00015985,2]
[391104762,1760350246778,-327.15802148,0.00015985,2]
[391104763,1760350246788,-1209.0,0.00015985,2]
[391104764,1760350246797,-903.0,0.00015985,2]
[391104765,1760350246806,-896.0,0.00015986,2]
[391104766,1760350246817,-150.0,0.00015987,2]
[391104767,1760350246826,-1131.84158507,0.00015994,2]
[391104768,1760350246836,-1000.0,0.00015996,2]
[391104769,1760350246845,-855.9875352,0.00016,2]
[391104770,1760350246854,-1000.0,0.00016,2]
[391104771,1760350246863,-200.430518,0.00016,2]
[391104772,1760350246872,-572.44602483,0.00016003,2]
[391104773,1760350246881,-1425.0,0.00016005,2]
[391104774,1760350246890,-1000.0,0.00016012,2]
[391104775,1760350246900,-1000.0,0.00016014,2]
[391104776,1760350246909,-150.0,0.00016016,2]
[391104777,1760350246917,-1425.0,0.00016019,2]
[391104778,1760350246927,-506.98591138,0.00016036,2]
[391104779,1760350246936,-440.0,0.0001604,2]
[391104780,1760350246946,-1209.0,0.0001604,2]
[391104781,1760350246955,-903.0,0.0001604,2]
[391104782,1760350246966,-1000.0,0.00016046,2]
[391104783,1760350246976,-1000.0,0.00016046,2]
[391104784,1760350246986,-151.45736606,0.00016047,2]
[391104785,1760350246996,-1000.0,0.0001605,2]
[391104786,1760350247006,-427.55397517,0.00016064,2]
[391104787,1760350247015,-212.0,0.00016081,2]
[391104788,1760350247025,-483.40067297,0.00016087,2]
[391104789,1760350247036,-691.91932703,0.00016087,2]
[391104790,1760350247046,-212.0,0.00016091,2]
[391104791,1760350247057,-440.0,0.00016095,2]
[391104792,1760350247068,-1209.0,0.00016095,2]
[391104793,1760350247077,-903.0,0.00016095,2]
[391104794,1760350247086,-300.0,0.00016099,2]
[391104795,1760350247095,-2692.1053,0.000161,2]
[391104796,1760350247104,-2692.1053,0.000161,2]
[391104797,1760350247113,-440.0,0.0001615,2]
[391104798,1760350247123,-1209.0,0.0001615,2]
[391104799,1760350247133,-903.0,0.0001615,2]
[391104800,1760350247142,-440.0,0.00016204,2]
[391104801,1760350247152,-1209.0,0.00016204,2]
[391104802,1760350247162,-903.0,0.00016204,2]
[391104803,1760350247172,-458.57831801,0.00016259,2]
[391104804,1760350247183,-1224.62850788,0.00016259,2]
[391104805,1760350247193,-914.0,0.00016259,2]
[391104806,1760350247203,-4252.3983382,0.0001626,2]
[391104807,1760350247215,-1381.00588662,0.0001626,2]
[391104808,1760350247226,-457.90505437,0.0001626,2]
[391104809,1760350247237,-2099.03,0.0001626,2]
[391104810,1760350247248,-1218.57340033,0.0001626,2]
[391104811,1760350247260,-2011.04870545,0.0001626,2]
[391104812,1760350247272,-585.42540873,0.0001626,2]
[391104813,1760350247282,-1090.0,0.00016263,2]
[391104814,1760350247291,-202.71,0.00016301,2]
[391104815,1760350247299,-150.0,0.00016301,2]
[391104816,1760350247309,-150.0,0.00016301,2]
[391104817,1760350247318,-150.0,0.00016301,2]
[391104818,1760350247327,-413.39,0.00016301,2]
[391104819,1760350247336,-826.62,0.00016301,2]
[391104820,1760350247345,-150.0,0.00016301,2]
[391104821,1760350247355,-413.39,0.00016301,2]
[391104822,1760350247364,-168.14,0.00016301,2]
[391104823,1760350247372,-413.39,0.00016301,2]
[391104824,1760350247382,-168.14,0.00016301,2]
[391104825,1760350247391,-413.39,0.00016301,2]
[391104826,1760350247401,-319.31,0.00016301,2]
[391104827,1760350247411,-858.42,0.00016301,2]
[391104828,1760350247420,-168.14,0.00016301,2]
[391104829,1760350247429,-546.03,0.00016301,2]
[391104830,1760350247439,-315.25,0.00016301,2]
[391104831,1760350247449,-1175.32,0.00016361,2]
[391104832,1760350247458,-6.71919846,0.00016435,2]
[391104844,1760350366974,-161.10732217,0.0001277,2]
[391104845,1760350369281,-157.0,0.0001277,2]
[391104848,1760350484863,-181.89267783,0.0001277,2]
[391104851,1760350561507,-313.90288985,0.000127,2]
[391104890,1760351431451,-86.09711015,0.000127,2]
[391104891,1760351431460,-705.04751194,0.000137,2]
[391104892,1760351431471,-204.87248806,0.000137,2]
[391104893,1760351431481,-865.95296378,0.00013778,2]
[391104894,1760351431490,-168.03907613,0.0001387,2]
[391104895,1760351431500,-1161.720583,0.00014405,2]
[391104896,1760351431509,-335.71380128,0.00014478,2]
[391104897,1760351431518,-267.46074303,0.00014478,2]
[391104898,1760351431528,-246.1,0.00014479,2]
[391104899,1760351431537,-168.0,0.00014761,2]
[391104900,1760351431548,-168.0,0.00014771,2]
[391104901,1760351431558,-168.0,0.00014792,2]
[391104902,1760351431567,-168.0,0.00014837,2]
[391104903,1760351431577,-300.78,0.00014847,2]
[391104904,1760351431586,-168.03907613,0.00014865,2]
[391104905,1760351431595,-331.0,0.00014879,2]
[391104906,1760351431604,-163.0,0.00014879,2]
[391104907,1760351431613,-1200.0,0.00014879,2]
[391104908,1760351431623,-248.0,0.00014879,2]
[391104909,1760351431633,-300.0,0.00014879,2]
[391104910,1760351431644,-300.0,0.00014879,2]
[391104911,1760351431655,-29999.99999919,0.0001488,2]
[391104912,1760351431668,-150.0,0.00014899,2]
[391104913,1760351431679,-1000.0,0.000149,2]
[391104914,1760351431689,-1000.0,0.000149,2]
[391104915,1760351431698,-173.26509924,0.000149,2]
[391104916,1760351431707,-19386.94070461,0.000149,2]
[391104917,1760351431716,-151.17854794,0.000149,2]
[391104918,1760351431726,-9968.3364126,0.00014913,2]
[391104919,1760351431735,-291.79650171,0.00014913,2]
[391104920,1760351431745,-168.0,0.00014931,2]
[391104921,1760351431755,-18207.50856129,0.0001495,2]
[391104922,1760351431765,-1395.4,0.00014965,2]
[391104923,1760351431775,-382.57436509,0.00014966,2]
[391104924,1760351431786,-695.39793187,0.00014966,2]
[391104925,1760351431796,-151.0,0.00014966,2]
[391104926,1760351431805,-151.0,0.00014966,2]
[391104927,1760351431815,-151.0,0.00014966,2]
[391104928,1760351431824,-151.0,0.00014966,2]
[391104929,1760351431833,-200.0,0.00014966,2]
[391104930,1760351431843,-151.0,0.00014966,2]
[391104931,1760351431853,-200.0,0.00014966,2]
[391104932,1760351431863,-151.0,0.00014966,2]
[391104933,1760351431872,-151.0,0.00014966,2]
[391104934,1760351431881,-151.0,0.00014966,2]
[391104935,1760351431891,-151.0,0.00014966,2]
[391104936,1760351431900,-151.0,0.00014966,2]
[391104937,1760351431909,-151.0,0.00014966,2]
[391104938,1760351431919,-151.0,0.00014966,2]
[391104939,1760351431932,-151.0,0.00014966,2]
[391104940,1760351431941,-151.0,0.00014966,2]
[391104941,1760351431951,-151.0,0.00014966,2]
[391104942,1760351431960,-151.0,0.00014966,2]
[391104943,1760351431970,-151.0,0.00014966,2]
[391104944,1760351431979,-151.0,0.00014966,2]
[391104945,1760351431989,-151.0,0.00014966,2]
[391104946,1760351432000,-151.0,0.00014966,2]
[391104947,1760351432010,-151.0,0.00014966,2]
[391104948,1760351432019,-173.36787212,0.00014966,2]
[391104949,1760351432028,-151.0,0.00014966,2]
[391104950,1760351432038,-151.0,0.00014966,2]
[391104951,1760351432047,-151.0,0.00014966,2]
[391104952,1760351432056,-151.0,0.00014966,2]
[391104953,1760351432065,-322.6107,0.00014966,2]
[391104954,1760351432074,-500.0,0.00014973,2]
[391104955,1760351432084,-500.0,0.00014973,2]
[391104956,1760351432094,-500.0,0.00014973,2]
[391104957,1760351432104,-500.0,0.00014973,2]
[391104958,1760351432113,-501.59885983,0.00014973,2]
[391104959,1760351432122,-500.0,0.00014973,2]
[391104960,1760351432132,-500.0,0.00014973,2]
[391104961,1760351432141,-500.0,0.00014973,2]
[391104962,1760351432150,-1309.0,0.00014975,2]
[391104963,1760351432159,-571.0,0.00014975,2]
[391104964,1760351432169,-604.0,0.00014975,2]
[391104965,1760351432178,-1588.0,0.00014975,2]
[391104966,1760351432190,-816.0,0.00014975,2]
[391104967,1760351432199,-901.0,0.00014975,2]
[391104968,1760351432208,-3406.0,0.00014975,2]
[391104969,1760351432217,-749.0,0.00014975,2]
[391104970,1760351432226,-2049.0,0.00014975,2]
[391104971,1760351432237,-2582.2,0.00014986,2]
[391104972,1760351432246,-304.60535132,0.00014998,2]
[391104973,1760351432256,-500.0,0.00014998,2]
[391104974,1760351432265,-500.0,0.00014998,2]
[391104975,1760351432274,-500.0,0.00014998,2]
[391104976,1760351432283,-500.0,0.00014998,2]
[391104977,1760351432294,-500.0,0.00014998,2]
[391104978,1760351432304,-500.0,0.00014998,2]
[391104979,1760351432313,-500.0,0.00014998,2]
[391104980,1760351432322,-500.0,0.00014998,2]
[391104981,1760351432331,-500.0,0.00014998,2]
[391104982,1760351432341,-500.0,0.00014998,2]
[391104983,1760351432350,-500.0,0.00014998,2]
[391104984,1760351432359,-500.0,0.00014998,2]
[391104985,1760351432367,-500.0,0.00014998,2]
[391104986,1760351432377,-500.0,0.00014998,2]
[391104987,1760351432386,-500.0,0.00014998,2]
[391104988,1760351432395,-331.04681126,0.00014998,2]
[391104989,1760351432404,-500.0,0.00014998,2]
[391104990,1760351432414,-500.0,0.00014998,2]
[391104991,1760351432423,-500.0,0.00014998,2]
[391104992,1760351432432,-500.0,0.00014998,2]
[391104993,1760351432442,-500.0,0.00014998,2]
[391104994,1760351432451,-500.0,0.00014998,2]
[391104995,1760351432460,-500.0,0.00014998,2]
[391104996,1760351432470,-500.0,0.00014998,2]
[391104997,1760351432480,-500.0,0.00014998,2]
[391104998,1760351432489,-500.0,0.00014998,2]
[391104999,1760351432499,-500.0,0.00014998,2]
[391105000,1760351432508,-500.0,0.00014998,2]
[391105001,1760351432517,-500.0,0.00014998,2]
[391105002,1760351432526,-500.0,0.00014998,2]
[391105003,1760351432535,-500.0,0.00014998,2]
[391105004,1760351432546,-500.0,0.00014998,2]
[391105005,1760351432556,-500.0,0.00014998,2]
[391105006,1760351432569,-500.0,0.00014998,2]
[391105007,1760351432580,-500.0,0.00014998,2]
[391105008,1760351432590,-500.0,0.00014998,2]
[391105009,1760351432600,-500.0,0.00014998,2]
[391105010,1760351432610,-500.0,0.00014998,2]
[391105011,1760351432619,-500.0,0.00014998,2]
[391105012,1760351432630,-500.0,0.00014998,2]
[391105013,1760351432642,-500.0,0.00014998,2]
[391105014,1760351432652,-500.0,0.00014998,2]
[391105015,1760351432662,-500.0,0.00014998,2]
[391105016,1760351432672,-500.0,0.00014998,2]
[391105017,1760351432683,-500.0,0.00014998,2]
[391105018,1760351432693,-200.0,0.00014998,2]
[391105019,1760351432703,-500.0,0.00014998,2]
[391105020,1760351432713,-500.0,0.00014998,2]
[391105021,1760351432724,-500.0,0.00014998,2]
[391105022,1760351432734,-500.0,0.00014998,2]
[391105023,1760351432743,-500.0,0.00014998,2]
[391105024,1760351432752,-500.0,0.00014998,2]
[391105025,1760351432761,-173.63840245,0.00014999,2]
[391105026,1760351432771,-273.72773693,0.00014999,2]
[391105027,1760351432780,-500.0,0.00014999,2]
[391105028,1760351432790,-280.32371323,0.00014999,2]
[391105029,1760351432799,-281.25753499,0.00014999,2]
[391105030,1760351432808,-477.24483503,0.00014999,2]
[391105031,1760351432818,-60976.21358145,0.00015,2]
[391105032,1760351432831,-21852.09351102,0.00015,2]
[391105033,1760351432842,-46328.49830324,0.00015,2]
[391105034,1760351432854,-1626.68131529,0.00015,2]
[391105035,1760351432877,-23061.41225491,0.00015,2]
[391105036,1760351432908,-1582.15,0.00015,2]
[391105037,1760351432919,-515.71559737,0.00015,2]
[391105038,1760351432933,-2172.30999241,0.00015,2]
[391105039,1760351432960,-6005.44507837,0.00015,2]
[391105040,1760351432973,-513.13091038,0.00015,2]
[391105041,1760351432985,-877.52823262,0.00015,2]
[391105042,1760351433002,-93940.97369768,0.00015,2]
[391105081,1760351438635,-1384.39075627,0.00014975,2]
[391105082,1760351438647,-2736.60924373,0.00014975,2]
[391105083,1760351438654,-151.0,0.00014995,2]
[391105084,1760351438663,-151.0,0.00014997,2]
[391105085,1760351438671,-3283.31089895,0.00015,2]
[391105086,1760351438682,-4755.0347196,0.00015,2]
[391105087,1760351438697,-213327.31553629,0.00015,2]
[391105088,1760351438706,-338270.93028714,0.00015,2]
[391105089,1760351438715,-151.0,0.00015,2]
[391105090,1760351438724,-156.711646,0.00015,2]
[391105091,1760351438733,-151.0,0.00015,2]
[391105092,1760351438742,-156.711646,0.00015,2]
[391105093,1760351438750,-151.0,0.00015,2]